[Event "December 12 Late 2023"]
[Site "https://www.chess.com"]
[Date "2023.12.12"]
[Round "4"]
[White "Gubajdullin, Alexei"]
[Black "Haraguchi, Diego Sashaki"]
[Result "1-0"]
[Board "71"]
[TimeControl "180+1"]
[WhiteFideId "4141202"]
[BlackFideId "22729925"]
[WhiteElo "2626"]
[BlackElo "2395"]
[WhiteTeam "RUS"]
[BlackTeam "BRA"]
[WhiteClock "0:02:00"]
[BlackClock "0:00:00"]

1. e4 {[%clk 0:02:59]}  e5 {[%clk 0:02:57]} 2. Nf3 {[%clk 0:02:59]}  Nc6 {[%clk 0:02:58]} 3. Bb5 {[%clk 0:02:58]}  Nf6 {[%clk 0:02:57]} 4. O-O {[%clk 0:02:55]}  Nxe4 {[%clk 0:02:58]} 5. d4 {[%clk 0:02:55]}  Nd6 {[%clk 0:02:57]} 6. Bxc6 {[%clk 0:02:55]}  dxc6 {[%clk 0:02:56]} 7. dxe5 {[%clk 0:02:55]}  Nf5 {[%clk 0:02:57]} 8. Qxd8+ {[%clk 0:02:55]}  Kxd8 {[%clk 0:02:57]} 9. h3 {[%clk 0:02:56]}  h6 {[%clk 0:02:54]} 10. Nc3 {[%clk 0:02:53]}  Be7 {[%clk 0:02:50]} 11. Ne2 {[%clk 0:02:53]}  b6 {[%clk 0:02:43]} 12. Nf4 {[%clk 0:02:53]}  Ba6 {[%clk 0:02:39]} 13. Rd1+ {[%clk 0:02:52]}  Kc8 {[%clk 0:02:39]} 14. Nh5 {[%clk 0:02:52]}  g6 {[%clk 0:02:35]} 15. Nf6 {[%clk 0:02:49]}  Bxf6 {[%clk 0:02:31]} 16. exf6 {[%clk 0:02:49]}  Be2 {[%clk 0:02:31]} 17. Re1 {[%clk 0:02:48]}  Bxf3 {[%clk 0:02:27]} 18. gxf3 {[%clk 0:02:47]}  Kb7 {[%clk 0:02:22]} 19. Bf4 {[%clk 0:02:47]}  Rhe8 {[%clk 0:02:14]} 20. Kh2 {[%clk 0:02:37]}  Nd4 {[%clk 0:02:04]} 21. Re7 {[%clk 0:02:36]}  Ne6 {[%clk 0:01:49]} 22. Bxh6 {[%clk 0:02:31]}  Rxe7 {[%clk 0:01:22]} 23. fxe7 {[%clk 0:02:30]}  Re8 {[%clk 0:01:22]} 24. Bf8 {[%clk 0:02:31]}  Nxf8 {[%clk 0:01:18]} 25. exf8=Q {[%clk 0:02:32]}  Rxf8 {[%clk 0:01:19]} 26. Rd1 {[%clk 0:02:31]}  Re8 {[%clk 0:01:17]} 27. Rd7 {[%clk 0:02:29]}  Re2 {[%clk 0:01:17]} 28. Kg3 {[%clk 0:02:29]}  f6 {[%clk 0:01:07]} 29. Rf7 {[%clk 0:02:28]}  Re6 {[%clk 0:01:02]} 30. f4 {[%clk 0:02:27]}  c5 {[%clk 0:00:50]} 31. f5 {[%clk 0:02:26]}  gxf5 {[%clk 0:00:51]} 32. h4 {[%clk 0:02:26]}  Re4 {[%clk 0:00:29]} 33. f3 {[%clk 0:02:26]}  Re2 {[%clk 0:00:21]} 34. h5 {[%clk 0:02:25]}  Rxc2 {[%clk 0:00:17]} 35. h6 {[%clk 0:02:26]}  Rc1 {[%clk 0:00:14]} 36. h7 {[%clk 0:02:22]}  Rh1 {[%clk 0:00:13]} 37. Kf4 {[%clk 0:02:23]}  Rh5 {[%clk 0:00:13]} 38. a4 {[%clk 0:02:15]}  a6 {[%clk 0:00:12]} 39. Ke3 {[%clk 0:02:11]}  b5 {[%clk 0:00:11]} 40. a5 {[%clk 0:02:12]}  b4 {[%clk 0:00:10]} 41. Kd3 {[%clk 0:02:11]}  Kc6 {[%clk 0:00:00]} 42. Rxf6+ {[%clk 0:02:00]} 1-0

[Event "December 12 Late 2023"]
[Site "https://www.chess.com"]
[Date "2023.12.12"]
[Round "4"]
[White "Boyer, Mahel"]
[Black "Kujawski, Adam"]
[Result "1/2-1/2"]
[Board "72"]
[TimeControl "180+1"]
[WhiteFideId "45102422"]
[BlackFideId "1100920"]
[WhiteElo "2625"]
[BlackElo "2355"]
[WhiteTeam "FRA"]
[BlackTeam "POL"]
[WhiteClock "0:00:01"]
[BlackClock "0:00:03"]

1. e4 {[%clk 0:02:28]}  e5 {[%clk 0:02:57]} 2. Bc4 {[%clk 0:02:27]}  Nf6 {[%clk 0:02:57]} 3. d3 {[%clk 0:02:28]}  d5 {[%clk 0:02:57]} 4. exd5 {[%clk 0:02:28]}  Nxd5 {[%clk 0:02:57]} 5. Nf3 {[%clk 0:02:29]}  Nc6 {[%clk 0:02:57]} 6. O-O {[%clk 0:02:29]}  Nb6 {[%clk 0:02:57]} 7. Bb5 {[%clk 0:02:28]}  Bd6 {[%clk 0:02:57]} 8. Re1 {[%clk 0:02:26]}  f6 {[%clk 0:02:57]} 9. d4 {[%clk 0:02:24]}  O-O {[%clk 0:02:57]} 10. Bxc6 {[%clk 0:01:15]}  bxc6 {[%clk 0:02:58]} 11. dxe5 {[%clk 0:01:15]}  fxe5 {[%clk 0:02:58]} 12. h3 {[%clk 0:01:15]}  e4 {[%clk 0:02:49]} 13. Ng5 {[%clk 0:01:14]}  Qf6 {[%clk 0:02:41]} 14. Nxe4 {[%clk 0:01:11]}  Qg6 {[%clk 0:02:41]} 15. Kh1 {[%clk 0:00:42]}  Bf5 {[%clk 0:02:39]} 16. Nbc3 {[%clk 0:00:40]}  Rae8 {[%clk 0:02:12]} 17. f3 {[%clk 0:00:20]}  Qh5 {[%clk 0:01:12]} 18. Nxd6 {[%clk 0:00:11]}  cxd6 {[%clk 0:01:12]} 19. Rxe8 {[%clk 0:00:09]}  Rxe8 {[%clk 0:01:11]} 20. Bf4 {[%clk 0:00:04]}  d5 {[%clk 0:00:20]} 21. Kh2 {[%clk 0:00:04]}  Qg6 {[%clk 0:00:18]} 22. Qd4 {[%clk 0:00:01]}  Bxc2 {[%clk 0:00:15]} 23. Rc1 {[%clk 0:00:02]}  Bf5 {[%clk 0:00:10]} 24. b3 {[%clk 0:00:02]}  Bd7 {[%clk 0:00:10]} 25. a4 {[%clk 0:00:02]}  Qf6 {[%clk 0:00:09]} 26. Qd2 {[%clk 0:00:01]}  Nc8 {[%clk 0:00:09]} 27. Bg5 {[%clk 0:00:01]}  Qf7 {[%clk 0:00:08]} 28. Bf4 {[%clk 0:00:02]}  Ne7 {[%clk 0:00:08]} 29. Ne2 {[%clk 0:00:02]}  Nf5 {[%clk 0:00:08]} 30. Nd4 {[%clk 0:00:01]}  Nxd4 {[%clk 0:00:07]} 31. Qxd4 {[%clk 0:00:02]}  Re2 {[%clk 0:00:07]} 32. Rc5 {[%clk 0:00:01]}  h6 {[%clk 0:00:06]} 33. Bg3 {[%clk 0:00:02]}  Qg6 {[%clk 0:00:05]} 34. Ra5 {[%clk 0:00:01]}  Qc2 {[%clk 0:00:04]} 35. Qg1 {[%clk 0:00:02]}  Bxh3 {[%clk 0:00:03]} 36. Kxh3 {[%clk 0:00:01]}  Qg6 {[%clk 0:00:03]} 37. Bh4 {[%clk 0:00:01]}  Qf5+ {[%clk 0:00:02]} 38. Kg3 {[%clk 0:00:02]}  Qe5+ {[%clk 0:00:02]} 39. Kh3 {[%clk 0:00:02]}  Qf5+ {[%clk 0:00:02]} 40. Kh2 {[%clk 0:00:02]}  Qh5 {[%clk 0:00:02]} 41. Kg3 {[%clk 0:00:02]}  Qf5 {[%clk 0:00:02]} 42. Rxa7 {[%clk 0:00:01]}  g5 {[%clk 0:00:02]} 43. Bxg5 {[%clk 0:00:01]}  Qxg5+ {[%clk 0:00:01]} 44. Kh3 {[%clk 0:00:02]}  Qh5+ {[%clk 0:00:02]} 45. Kg3 {[%clk 0:00:02]}  Qg5+ {[%clk 0:00:03]} 46. Kh3 {[%clk 0:00:02]}  Qh5+ {[%clk 0:00:03]} 47. Kg3 {[%clk 0:00:02]}  Qg6+ {[%clk 0:00:04]} 48. Kh2 {[%clk 0:00:01]}  Qh5+ {[%clk 0:00:03]} 49. Kg3 {[%clk 0:00:01]} 1/2-1/2

[Event "December 12 Late 2023"]
[Site "https://www.chess.com"]
[Date "2023.12.12"]
[Round "4"]
[White "Rose, Felix"]
[Black "Golubev, Mikhail"]
[Result "0-1"]
[Board "73"]
[TimeControl "180+1"]
[WhiteFideId "5105722"]
[BlackFideId "14100983"]
[WhiteElo "2335"]
[BlackElo "2621"]
[WhiteTeam "MEX"]
[BlackTeam "UKR"]
[WhiteClock "0:00:03"]
[BlackClock "0:00:14"]

1. e4 {[%clk 0:03:00]}  c5 {[%clk 0:02:59]} 2. Nf3 {[%clk 0:03:00]}  Nc6 {[%clk 0:02:59]} 3. d4 {[%clk 0:03:00]}  cxd4 {[%clk 0:02:59]} 4. Nxd4 {[%clk 0:03:01]}  Nf6 {[%clk 0:02:58]} 5. Nc3 {[%clk 0:03:01]}  d6 {[%clk 0:02:56]} 6. Bg5 {[%clk 0:03:01]}  Bd7 {[%clk 0:02:55]} 7. Qd2 {[%clk 0:03:00]}  a6 {[%clk 0:02:55]} 8. O-O-O {[%clk 0:03:00]}  e6 {[%clk 0:02:54]} 9. h4 {[%clk 0:02:52]}  h6 {[%clk 0:02:42]} 10. Bxf6 {[%clk 0:02:20]}  Qxf6 {[%clk 0:02:40]} 11. f3 {[%clk 0:02:17]}  h5 {[%clk 0:02:32]} 12. Kb1 {[%clk 0:02:13]}  Nxd4 {[%clk 0:02:23]} 13. Qxd4 {[%clk 0:02:13]}  Qxd4 {[%clk 0:02:23]} 14. Rxd4 {[%clk 0:02:13]}  Ke7 {[%clk 0:02:13]} 15. Be2 {[%clk 0:02:11]}  Rc8 {[%clk 0:02:11]} 16. Rhd1 {[%clk 0:02:10]}  Rc6 {[%clk 0:02:10]} 17. a4 {[%clk 0:01:38]}  g6 {[%clk 0:02:00]} 18. Rb4 {[%clk 0:01:35]}  Rc7 {[%clk 0:01:54]} 19. a5 {[%clk 0:01:30]}  Bg7 {[%clk 0:01:49]} 20. Na4 {[%clk 0:01:29]}  Bxa4 {[%clk 0:01:44]} 21. Rxa4 {[%clk 0:01:28]}  Rhc8 {[%clk 0:01:44]} 22. c3 {[%clk 0:01:20]}  Be5 {[%clk 0:01:28]} 23. g4 {[%clk 0:01:06]}  Rc5 {[%clk 0:01:15]} 24. Rf1 {[%clk 0:00:52]}  Bf4 {[%clk 0:01:10]} 25. c4 {[%clk 0:00:32]}  Rh8 {[%clk 0:01:04]} 26. b4 {[%clk 0:00:26]}  Re5 {[%clk 0:00:58]} 27. Ra2 {[%clk 0:00:24]}  Bg3 {[%clk 0:00:49]} 28. Bd3 {[%clk 0:00:11]}  hxg4 {[%clk 0:00:48]} 29. f4 {[%clk 0:00:11]}  Reh5 {[%clk 0:00:48]} 30. Rg1 {[%clk 0:00:10]}  Bxf4 {[%clk 0:00:45]} 31. Rxg4 {[%clk 0:00:10]}  Be3 {[%clk 0:00:30]} 32. Re2 {[%clk 0:00:10]}  Bd4 {[%clk 0:00:30]} 33. Rh2 {[%clk 0:00:10]}  g5 {[%clk 0:00:27]} 34. b5 {[%clk 0:00:08]}  Rxh4 {[%clk 0:00:25]} 35. Rhg2 {[%clk 0:00:09]}  Rxg4 {[%clk 0:00:22]} 36. Rxg4 {[%clk 0:00:10]}  Kf6 {[%clk 0:00:21]} 37. bxa6 {[%clk 0:00:09]}  bxa6 {[%clk 0:00:21]} 38. c5 {[%clk 0:00:09]}  Rb8+ {[%clk 0:00:20]} 39. Kc2 {[%clk 0:00:09]}  dxc5 {[%clk 0:00:19]} 40. Bxa6 {[%clk 0:00:09]}  Ra8 {[%clk 0:00:18]} 41. Bc4 {[%clk 0:00:08]}  Rxa5 {[%clk 0:00:18]} 42. e5+ {[%clk 0:00:08]}  Bxe5 {[%clk 0:00:18]} 43. Rg1 {[%clk 0:00:07]}  Bf4 {[%clk 0:00:17]} 44. Rf1 {[%clk 0:00:07]}  Ra3 {[%clk 0:00:16]} 45. Bb3 {[%clk 0:00:07]}  Ra7 {[%clk 0:00:15]} 46. Kd3 {[%clk 0:00:07]}  Rd7+ {[%clk 0:00:14]} 47. Kc3 {[%clk 0:00:06]}  Rd4 {[%clk 0:00:15]} 48. Bc2 {[%clk 0:00:07]}  Kg7 {[%clk 0:00:14]} 49. Rh1 {[%clk 0:00:07]}  f5 {[%clk 0:00:14]} 50. Rh7+ {[%clk 0:00:03]}  Kxh7 {[%clk 0:00:14]} 0-1

[Event "December 12 Late 2023"]
[Site "https://www.chess.com"]
[Date "2023.12.12"]
[Round "4"]
[White "Burke, Paul"]
[Black "Olsen, Filip Boe"]
[Result "0-1"]
[Board "74"]
[TimeControl "180+1"]
[WhiteFideId "2605767"]
[BlackFideId "1440640"]
[WhiteElo "1852"]
[BlackElo "2619"]
[WhiteTeam "CAN"]
[BlackTeam "DEN"]
[WhiteClock "0:00:00"]
[BlackClock "0:00:46"]

1. e4 {[%clk 0:03:00]}  c5 {[%clk 0:02:56]} 2. Nf3 {[%clk 0:03:00]}  d6 {[%clk 0:02:56]} 3. d4 {[%clk 0:03:00]}  cxd4 {[%clk 0:02:57]} 4. c3 {[%clk 0:03:00]}  Nf6 {[%clk 0:02:53]} 5. Bd3 {[%clk 0:02:57]}  dxc3 {[%clk 0:02:51]} 6. Nxc3 {[%clk 0:02:57]}  Nc6 {[%clk 0:02:52]} 7. h3 {[%clk 0:02:55]}  g6 {[%clk 0:02:50]} 8. O-O {[%clk 0:02:55]}  Bg7 {[%clk 0:02:50]} 9. Qe2 {[%clk 0:02:55]}  O-O {[%clk 0:02:50]} 10. Rd1 {[%clk 0:02:55]}  Nd7 {[%clk 0:02:50]} 11. Bg5 {[%clk 0:02:45]}  b6 {[%clk 0:02:47]} 12. Nd5 {[%clk 0:02:41]}  Bb7 {[%clk 0:02:45]} 13. Rac1 {[%clk 0:02:38]}  f6 {[%clk 0:02:37]} 14. Bh4 {[%clk 0:02:16]}  Rc8 {[%clk 0:02:36]} 15. Nf4 {[%clk 0:02:10]}  Nc5 {[%clk 0:02:26]} 16. Rxc5 {[%clk 0:02:03]}  bxc5 {[%clk 0:02:27]} 17. Ne6 {[%clk 0:02:03]}  Qd7 {[%clk 0:02:25]} 18. Nxf8 {[%clk 0:02:00]}  Kxf8 {[%clk 0:02:24]} 19. Bc4 {[%clk 0:01:50]}  Na5 {[%clk 0:02:08]} 20. Bd5 {[%clk 0:01:46]}  Bxd5 {[%clk 0:02:07]} 21. exd5 {[%clk 0:01:46]}  Rb8 {[%clk 0:01:59]} 22. Re1 {[%clk 0:01:27]}  Rb4 {[%clk 0:01:50]} 23. Bg3 {[%clk 0:01:19]}  Nb7 {[%clk 0:01:38]} 24. b3 {[%clk 0:01:04]}  Nd8 {[%clk 0:01:37]} 25. Qd2 {[%clk 0:01:02]}  Nf7 {[%clk 0:01:35]} 26. Bf4 {[%clk 0:01:01]}  Qf5 {[%clk 0:01:25]} 27. Be3 {[%clk 0:00:52]}  Qd7 {[%clk 0:01:16]} 28. Rc1 {[%clk 0:00:39]}  f5 {[%clk 0:01:16]} 29. Rc4 {[%clk 0:00:35]}  Rxc4 {[%clk 0:01:15]} 30. bxc4 {[%clk 0:00:35]}  Qb7 {[%clk 0:01:15]} 31. Ng5 {[%clk 0:00:28]}  Nxg5 {[%clk 0:01:14]} 32. Bxg5 {[%clk 0:00:28]}  Be5 {[%clk 0:01:12]} 33. g3 {[%clk 0:00:24]}  Qb1+ {[%clk 0:01:10]} 34. Kg2 {[%clk 0:00:24]}  Qe4+ {[%clk 0:01:10]} 35. Kh2 {[%clk 0:00:21]}  Qd4 {[%clk 0:00:49]} 36. Qe2 {[%clk 0:00:00]}  Qb2 {[%clk 0:00:46]} 0-1

[Event "December 12 Late 2023"]
[Site "https://www.chess.com"]
[Date "2023.12.12"]
[Round "4"]
[White "Grutter, Tim"]
[Black "Mikaelyan, Arman"]
[Result "1-0"]
[Board "76"]
[TimeControl "180+1"]
[WhiteFideId "1057472"]
[BlackFideId "13304852"]
[WhiteElo "2512"]
[BlackElo "2829"]
[WhiteTeam "NED"]
[BlackTeam "ARM"]
[WhiteClock "0:00:08"]
[BlackClock "0:01:14"]

1. Nf3 {[%clk 0:03:00]}  a6 {[%clk 0:02:51]} 2. g3 {[%clk 0:03:00]}  b5 {[%clk 0:02:51]} 3. Bg2 {[%clk 0:03:01]}  Bb7 {[%clk 0:02:52]} 4. O-O {[%clk 0:03:01]}  d6 {[%clk 0:02:53]} 5. d3 {[%clk 0:03:01]}  Nd7 {[%clk 0:02:53]} 6. e4 {[%clk 0:03:00]}  g6 {[%clk 0:02:54]} 7. a4 {[%clk 0:02:59]}  Bg7 {[%clk 0:02:54]} 8. c3 {[%clk 0:02:58]}  e6 {[%clk 0:02:54]} 9. Be3 {[%clk 0:02:51]}  Ne7 {[%clk 0:02:54]} 10. Qd2 {[%clk 0:02:50]}  O-O {[%clk 0:02:51]} 11. Bh6 {[%clk 0:02:50]}  Nc5 {[%clk 0:02:51]} 12. Bxg7 {[%clk 0:02:50]}  Kxg7 {[%clk 0:02:52]} 13. Qc2 {[%clk 0:02:42]}  Nxa4 {[%clk 0:02:52]} 14. Nbd2 {[%clk 0:02:34]}  Qd7 {[%clk 0:02:48]} 15. Nb3 {[%clk 0:02:34]}  Rab8 {[%clk 0:02:47]} 16. Na5 {[%clk 0:02:31]}  Ba8 {[%clk 0:02:47]} 17. d4 {[%clk 0:02:27]}  c5 {[%clk 0:02:44]} 18. Rfd1 {[%clk 0:02:17]}  c4 {[%clk 0:02:41]} 19. Nxc4 {[%clk 0:02:14]}  bxc4 {[%clk 0:02:42]} 20. Qxa4 {[%clk 0:02:13]}  Qxa4 {[%clk 0:02:42]} 21. Rxa4 {[%clk 0:02:14]}  Bxe4 {[%clk 0:02:42]} 22. Rxa6 {[%clk 0:02:10]}  d5 {[%clk 0:02:42]} 23. Ra2 {[%clk 0:01:56]}  Rb7 {[%clk 0:02:43]} 24. Ne5 {[%clk 0:01:48]}  Bxg2 {[%clk 0:02:42]} 25. Kxg2 {[%clk 0:01:49]}  Rfb8 {[%clk 0:02:42]} 26. Rd2 {[%clk 0:01:49]}  f6 {[%clk 0:02:40]} 27. Nf3 {[%clk 0:01:43]}  Nf5 {[%clk 0:02:41]} 28. Ng1 {[%clk 0:01:40]}  Nd6 {[%clk 0:02:41]} 29. f3 {[%clk 0:01:40]}  g5 {[%clk 0:02:39]} 30. h3 {[%clk 0:01:33]}  h5 {[%clk 0:02:39]} 31. Ne2 {[%clk 0:01:30]}  Kg6 {[%clk 0:02:39]} 32. g4 {[%clk 0:01:28]}  hxg4 {[%clk 0:02:37]} 33. hxg4 {[%clk 0:01:28]}  Rh8 {[%clk 0:02:37]} 34. Ng3 {[%clk 0:01:25]}  f5 {[%clk 0:02:29]} 35. Ra6 {[%clk 0:01:21]}  Rd7 {[%clk 0:02:26]} 36. Re2 {[%clk 0:01:17]}  Kf6 {[%clk 0:02:22]} 37. Nh5+ {[%clk 0:01:07]}  Kf7 {[%clk 0:02:21]} 38. Ng3 {[%clk 0:01:07]}  f4 {[%clk 0:02:19]} 39. Nh5 {[%clk 0:01:04]}  Rb8 {[%clk 0:02:18]} 40. Kf1 {[%clk 0:00:52]}  Ke7 {[%clk 0:02:15]} 41. Ng7 {[%clk 0:00:49]}  Nf7 {[%clk 0:02:06]} 42. Nxe6 {[%clk 0:00:41]}  Rd6 {[%clk 0:02:06]} 43. Nc5+ {[%clk 0:00:17]}  Kd8 {[%clk 0:02:01]} 44. Ra7 {[%clk 0:00:17]}  Nh6 {[%clk 0:01:36]} 45. Nb7+ {[%clk 0:00:14]}  Rxb7 {[%clk 0:01:31]} 46. Rxb7 {[%clk 0:00:15]}  Ra6 {[%clk 0:01:31]} 47. Ree7 {[%clk 0:00:12]}  Ng8 {[%clk 0:01:27]} 48. Rf7 {[%clk 0:00:09]}  Ke8 {[%clk 0:01:24]} 49. Rg7 {[%clk 0:00:09]}  Kf8 {[%clk 0:01:21]} 50. Rxg5 {[%clk 0:00:10]}  Ne7 {[%clk 0:01:20]} 51. Re5 {[%clk 0:00:07]}  Nc6 {[%clk 0:01:17]} 52. Rxd5 {[%clk 0:00:05]}  Ra1+ {[%clk 0:01:16]} 53. Kf2 {[%clk 0:00:05]}  Rc1 {[%clk 0:01:16]} 54. Rd6 {[%clk 0:00:05]}  Rc2+ {[%clk 0:01:16]} 55. Ke1 {[%clk 0:00:04]}  Ne7 {[%clk 0:01:15]} 56. Rd8+ {[%clk 0:00:04]}  Kf7 {[%clk 0:01:15]} 57. Rdd7 {[%clk 0:00:05]}  Kg6 {[%clk 0:01:14]} 58. Rxe7 {[%clk 0:00:05]}  Kg5 {[%clk 0:01:15]} 59. d5 {[%clk 0:00:05]}  Kh4 {[%clk 0:01:15]} 60. Re2 {[%clk 0:00:04]}  Rc1+ {[%clk 0:01:15]} 61. Kd2 {[%clk 0:00:05]}  Ra1 {[%clk 0:01:15]} 62. d6 {[%clk 0:00:05]}  Ra6 {[%clk 0:01:15]} 63. d7 {[%clk 0:00:05]}  Rd6+ {[%clk 0:01:16]} 64. Kc2 {[%clk 0:00:06]}  Kg3 {[%clk 0:01:17]} 65. Rd2 {[%clk 0:00:06]}  Re6 {[%clk 0:01:13]} 66. d8=Q {[%clk 0:00:06]}  Re3 {[%clk 0:01:14]} 67. Qd4 {[%clk 0:00:06]}  Rxf3 {[%clk 0:01:14]} 68. Qxc4 {[%clk 0:00:06]}  Re3 {[%clk 0:01:14]} 69. Rd3 {[%clk 0:00:06]}  Kf2 {[%clk 0:01:14]} 70. Rxe3 {[%clk 0:00:07]}  fxe3 {[%clk 0:01:15]} 71. Rf7+ {[%clk 0:00:06]}  Kg3 {[%clk 0:01:14]} 72. Qf1 {[%clk 0:00:05]}  e2 {[%clk 0:01:14]} 73. Qf2+ {[%clk 0:00:06]}  Kh3 {[%clk 0:01:14]} 74. Rh7+ {[%clk 0:00:06]}  Kxg4 {[%clk 0:01:14]} 75. Rh4+ {[%clk 0:00:07]}  Kg5 {[%clk 0:01:14]} 76. Qf4+ {[%clk 0:00:08]} 1-0

[Event "December 12 Late 2023"]
[Site "https://www.chess.com"]
[Date "2023.12.12"]
[Round "4"]
[White "Rodriguez Fontecha, Marcos"]
[Black "Bardyk, Artem"]
[Result "1-0"]
[Board "78"]
[TimeControl "180+1"]
[WhiteFideId "2256576"]
[BlackFideId "34349979"]
[WhiteElo "2476"]
[BlackElo "2732"]
[WhiteTeam "ESP"]
[BlackTeam "RUS"]
[WhiteClock "0:00:38"]
[BlackClock "0:00:00"]

1. d4 {[%clk 0:03:00]}  d5 {[%clk 0:02:58]} 2. Bf4 {[%clk 0:03:00]}  Nf6 {[%clk 0:02:55]} 3. e3 {[%clk 0:02:58]}  c5 {[%clk 0:02:55]} 4. c3 {[%clk 0:02:59]}  Nc6 {[%clk 0:02:54]} 5. Nd2 {[%clk 0:02:59]}  Bf5 {[%clk 0:02:53]} 6. Qb3 {[%clk 0:02:59]}  Qc8 {[%clk 0:02:53]} 7. Ngf3 {[%clk 0:02:59]}  c4 {[%clk 0:02:53]} 8. Qb5 {[%clk 0:02:58]}  Bc2 {[%clk 0:02:46]} 9. b3 {[%clk 0:02:50]}  a6 {[%clk 0:02:44]} 10. Qb6 {[%clk 0:02:38]}  Nd7 {[%clk 0:02:38]} 11. Qc7 {[%clk 0:02:38]}  Qxc7 {[%clk 0:02:19]} 12. Bxc7 {[%clk 0:02:39]}  Rc8 {[%clk 0:02:19]} 13. Bg3 {[%clk 0:02:38]}  b5 {[%clk 0:02:19]} 14. Be2 {[%clk 0:02:32]}  b4 {[%clk 0:02:18]} 15. bxc4 {[%clk 0:02:23]}  bxc3 {[%clk 0:02:16]} 16. Nb1 {[%clk 0:02:19]}  e5 {[%clk 0:01:58]} 17. c5 {[%clk 0:02:17]}  e4 {[%clk 0:01:17]} 18. Nh4 {[%clk 0:02:17]}  Nxc5 {[%clk 0:01:01]} 19. dxc5 {[%clk 0:01:53]}  Bxc5 {[%clk 0:01:02]} 20. O-O {[%clk 0:01:52]}  d4 {[%clk 0:00:56]} 21. exd4 {[%clk 0:01:43]}  Nxd4 {[%clk 0:00:57]} 22. Bxa6 {[%clk 0:01:28]}  Rc6 {[%clk 0:00:34]} 23. Bc4 {[%clk 0:01:05]}  Be7 {[%clk 0:00:17]} 24. Bb3 {[%clk 0:01:03]}  Bd3 {[%clk 0:00:16]} 25. Re1 {[%clk 0:00:54]}  g5 {[%clk 0:00:12]} 26. Be5 {[%clk 0:00:44]}  Bf6 {[%clk 0:00:03]} 27. Bxd4 {[%clk 0:00:38]}  Bxd4 {[%clk 0:00:00]} 28. Nf5 {[%clk 0:00:38]} 1-0

[Event "December 12 Late 2023"]
[Site "https://www.chess.com"]
[Date "2023.12.12"]
[Round "4"]
[White "Marin Posada, Sebastian"]
[Black "Tokhirjonova, Gulrukhbegim"]
[Result "1-0"]
[Board "80"]
[TimeControl "180+1"]
[WhiteFideId "4402782"]
[BlackFideId "14203626"]
[WhiteElo "2421"]
[BlackElo "2647"]
[WhiteTeam "COL"]
[BlackTeam "USA"]
[WhiteClock "0:00:07"]
[BlackClock "0:00:15"]

1. d4 {[%clk 0:03:00]}  Nf6 {[%clk 0:02:56]} 2. c4 {[%clk 0:03:00]}  g6 {[%clk 0:02:56]} 3. g3 {[%clk 0:02:57]}  Bg7 {[%clk 0:02:53]} 4. Bg2 {[%clk 0:02:57]}  d5 {[%clk 0:02:53]} 5. cxd5 {[%clk 0:02:55]}  Nxd5 {[%clk 0:02:54]} 6. e4 {[%clk 0:02:51]}  Nb6 {[%clk 0:02:53]} 7. Ne2 {[%clk 0:02:47]}  O-O {[%clk 0:02:51]} 8. O-O {[%clk 0:02:47]}  e6 {[%clk 0:02:41]} 9. Nbc3 {[%clk 0:02:45]}  Nc6 {[%clk 0:02:41]} 10. e5 {[%clk 0:02:30]}  Nb4 {[%clk 0:02:31]} 11. a3 {[%clk 0:02:25]}  N4d5 {[%clk 0:02:31]} 12. Ne4 {[%clk 0:02:24]}  h6 {[%clk 0:02:24]} 13. Qc2 {[%clk 0:02:07]}  Bd7 {[%clk 0:02:23]} 14. Bd2 {[%clk 0:02:00]}  Ba4 {[%clk 0:02:21]} 15. b3 {[%clk 0:01:59]}  Bb5 {[%clk 0:02:17]} 16. Rfe1 {[%clk 0:01:54]}  Bxe2 {[%clk 0:02:15]} 17. Rxe2 {[%clk 0:01:55]}  c6 {[%clk 0:02:15]} 18. Rd1 {[%clk 0:01:49]}  Qd7 {[%clk 0:02:13]} 19. Nd6 {[%clk 0:01:43]}  Nc8 {[%clk 0:02:09]} 20. Nc4 {[%clk 0:01:26]}  Nce7 {[%clk 0:01:55]} 21. Be4 {[%clk 0:01:24]}  Nf5 {[%clk 0:01:53]} 22. Bc1 {[%clk 0:01:18]}  Rfd8 {[%clk 0:01:42]} 23. h4 {[%clk 0:01:12]}  Qe7 {[%clk 0:01:37]} 24. b4 {[%clk 0:01:06]}  Nb6 {[%clk 0:01:34]} 25. Na5 {[%clk 0:01:02]}  Nxd4 {[%clk 0:01:32]} 26. Rxd4 {[%clk 0:01:00]}  Rxd4 {[%clk 0:01:33]} 27. Be3 {[%clk 0:00:57]}  Rd7 {[%clk 0:01:25]} 28. Bc5 {[%clk 0:00:55]}  Qd8 {[%clk 0:01:24]} 29. Bd6 {[%clk 0:00:53]}  Qe8 {[%clk 0:01:10]} 30. Nxb7 {[%clk 0:00:47]}  Rxb7 {[%clk 0:01:09]} 31. Bxc6 {[%clk 0:00:47]}  Qc8 {[%clk 0:01:02]} 32. b5 {[%clk 0:00:41]}  Nd5 {[%clk 0:00:56]} 33. a4 {[%clk 0:00:37]}  Rb6 {[%clk 0:00:48]} 34. h5 {[%clk 0:00:28]}  gxh5 {[%clk 0:00:47]} 35. f4 {[%clk 0:00:26]}  a6 {[%clk 0:00:42]} 36. f5 {[%clk 0:00:18]}  axb5 {[%clk 0:00:41]} 37. Bxa8 {[%clk 0:00:13]}  Qxa8 {[%clk 0:00:40]} 38. fxe6 {[%clk 0:00:11]}  fxe6 {[%clk 0:00:39]} 39. Qg6 {[%clk 0:00:11]}  bxa4 {[%clk 0:00:35]} 40. Qxe6+ {[%clk 0:00:10]}  Kh8 {[%clk 0:00:33]} 41. Rf2 {[%clk 0:00:10]}  Rb2 {[%clk 0:00:30]} 42. Rxb2 {[%clk 0:00:08]}  Qc6 {[%clk 0:00:15]} 43. Rb8+ {[%clk 0:00:07]}  Kh7 {[%clk 0:00:15]} 44. Qf5# {[%clk 0:00:07]} 1-0